fUSD/lending_fUSD_20260702
["ID","MTS","AMOUNT","RATE_DAILY","PERIOD"]
[426890433,1782990635000,-254.40290162,0.00025617,2]
[426890432,1782990635000,-300.68222028,0.00025617,2]
[426890424,1782990635000,-224.03841985,0.00025594,2]
[426890429,1782990635000,-258.83573342,0.00025617,2]
[426890431,1782990635000,-293.40812915,0.00025617,2]
[426890426,1782990635000,-249.42749461,0.00025594,2]
[426890430,1782990635000,-288.27776286,0.00025617,2]
[426890428,1782990635000,-307.96673631,0.00025597,2]
[426890425,1782990635000,-181.8222043,0.00025594,2]
[426890441,1782990635000,-243.38018409,0.00025617,2]
[426890427,1782990635000,-241.34301055,0.00025594,2]
[426890440,1782990635000,-254.23400554,0.00025617,2]
[426890456,1782990635000,-297.8315722,0.00025669,2]
[426890448,1782990635000,-266.64364526,0.00025617,2]
[426890444,1782990635000,-279.2443759,0.00025617,2]
[426890461,1782990635000,-21145.64264651,0.00025792,2]
[426890460,1782990635000,-166.91,0.00025784,2]
[426890459,1782990635000,-4996.4835684,0.00025669,2]
[426890453,1782990635000,-243.1025526,0.00025619,2]
[426890457,1782990635000,-59442.10738543,0.00025669,2]
[426890458,1782990635000,-2403.90168047,0.00025669,2]
[426890455,1782990635000,-300.84707051,0.00025619,2]
[426890454,1782990635000,-301.5020461,0.00025619,2]
[426890451,1782990635000,-159.77460003,0.00025619,2]
[426890450,1782990635000,-176.52662774,0.00025619,2]
[426890443,1782990635000,-283.7820467,0.00025617,2]
[426890446,1782990635000,-249.56928751,0.00025617,2]
[426890447,1782990635000,-278.48034052,0.00025617,2]
[426890445,1782990635000,-243.73715917,0.00025617,2]
[426890449,1782990635000,-276.94956398,0.00025617,2]
[426890452,1782990635000,-246.47167041,0.00025619,2]
[426890442,1782990635000,-289.84580051,0.00025617,2]
[426890479,1782990638000,-164.61468301,0.00026,2]
[426890480,1782990638000,-223.0,0.00026,2]
[426890482,1782990638000,-437.0,0.00026,2]
[426890483,1782990638000,-202.0,0.00026,2]
[426890488,1782990638000,-263.0,0.00026,2]
[426890493,1782990638000,-470.0,0.00026,2]
[426890494,1782990638000,-166.0,0.00026,2]
[426890492,1782990638000,-173.0,0.00026,2]
[426890486,1782990638000,-190.0,0.00026,2]
[426890481,1782990638000,-381.0,0.00026,2]
[426890490,1782990638000,-163.0,0.00026,2]
[426890477,1782990638000,-3681.83691967,0.00025792,2]
[426890466,1782990638000,-1617.488942,0.00019018,2]
[426890475,1782990638000,-196.54,0.00024658,2]
[426890474,1782990638000,-500.0,0.00023367,2]
[426890476,1782990638000,-4945.34589798,0.00025792,2]
[426890473,1782990638000,-406.5824502,0.00023367,2]
[426890472,1782990638000,-500.0,0.00023367,2]
[426890495,1782990638000,-251.0,0.00026,2]
[426890469,1782990638000,-297.01319694,0.00023367,2]
[426890471,1782990638000,-216.15357752,0.00023367,2]
[426890470,1782990638000,-500.0,0.00023367,2]
[426890468,1782990638000,-220.56141538,0.0001985,2]
[426890467,1782990638000,-234.0,0.00019759,2]
[426890478,1782990638000,-17427.21114643,0.00025792,2]
[426890496,1782990638000,-6090.88474034,0.00026024,2]
[426890517,1782990638000,-182.53923308,0.00026151,2]
[426890498,1782990638000,-168.42986388,0.00026144,2]
[426890497,1782990638000,-276.82,0.00026027,7]
[426890519,1782990638000,-244.73940062,0.00026151,2]
[426890523,1782990638000,-198.08109889,0.00026151,2]
[426890520,1782990638000,-496.82096165,0.00026151,2]
[426890521,1782990638000,-156.43641278,0.00026151,2]
[426890522,1782990638000,-201.64576125,0.00026151,2]
[426890516,1782990638000,-324.05764555,0.00026151,2]
[426890518,1782990638000,-534.80911379,0.00026151,2]
[426890515,1782990638000,-178.32338398,0.00026151,2]
[426890511,1782990638000,-491.53874548,0.00026151,2]
[426890512,1782990638000,-571.3745823,0.00026151,2]
[426890513,1782990638000,-228.34329624,0.00026151,2]
[426890514,1782990638000,-487.36341913,0.00026151,2]
[426890507,1782990638000,-198.16443608,0.00026151,2]
[426890505,1782990638000,-306.89519691,0.00026151,2]
[426890499,1782990638000,-185.87586395,0.00026144,2]
[426890500,1782990638000,-370.26821631,0.00026151,2]
[426890501,1782990638000,-374.48979882,0.00026151,2]
[426890503,1782990638000,-491.31409167,0.00026151,2]
[426890502,1782990638000,-247.59114268,0.00026151,2]
[426890506,1782990638000,-165.9380636,0.00026151,2]
[426890508,1782990638000,-239.58861894,0.00026151,2]
[426890510,1782990638000,-498.45537158,0.00026151,2]
[426890509,1782990638000,-575.17145383,0.00026151,2]
[426890504,1782990638000,-290.57005018,0.00026151,2]
[426890540,1782990639000,-487.69622973,0.00026151,2]
[426890549,1782990639000,-508.80580324,0.00026174,2]
[426890539,1782990639000,-565.06468215,0.00026151,2]
[426890547,1782990639000,-432.11591781,0.00026174,2]
[426890550,1782990639000,-451.02333042,0.00026174,2]
[426890545,1782990639000,-517.67146685,0.00026174,2]
[426890546,1782990639000,-576.55552573,0.00026174,2]
[426890542,1782990639000,-448.07683969,0.00026151,2]
[426890544,1782990639000,-482.6860211,0.00026151,2]
[426890543,1782990639000,-498.85498923,0.00026151,2]
[426890538,1782990639000,-402.45236034,0.00026151,2]
[426890548,1782990639000,-586.8162583,0.00026174,2]
[426890537,1782990639000,-505.15951949,0.00026151,2]
[426890524,1782990639000,-485.831111,0.00026151,2]
[426890536,1782990639000,-497.75404691,0.00026151,2]
[426890534,1782990639000,-408.25375667,0.00026151,2]
[426890533,1782990639000,-519.13323728,0.00026151,2]
[426890532,1782990639000,-230.07891307,0.00026151,2]
[426890530,1782990639000,-376.19491378,0.00026151,2]
[426890529,1782990639000,-199.67808095,0.00026151,2]
[426890528,1782990639000,-497.42561469,0.00026151,2]
[426890531,1782990639000,-306.74442674,0.00026151,2]
[426890526,1782990639000,-218.66398581,0.00026151,2]
[426890527,1782990639000,-210.5280024,0.00026151,2]
[426890525,1782990639000,-457.55853778,0.00026151,2]
[426890552,1782990639000,-577.31181748,0.00026174,2]
[426890535,1782990639000,-676.04119814,0.00026151,2]
[426890551,1782990639000,-203.55116765,0.00026174,2]
[426890541,1782990639000,-167.94611917,0.00026151,2]
[426890554,1782990639000,-239.94227655,0.00026174,2]
[426890581,1782990639000,-659.05111586,0.00026289,2]
[426890553,1782990639000,-566.27708366,0.00026174,2]
[426890578,1782990639000,-451.27060577,0.00026176,2]
[426890579,1782990639000,-34398.54359022,0.00026289,2]
[426890577,1782990639000,-452.25306914,0.00026176,2]
[426890576,1782990639000,-486.20510521,0.00026176,2]
[426890572,1782990639000,-353.05325548,0.00026176,2]
[426890574,1782990639000,-272.62488716,0.00026176,2]
[426890575,1782990639000,-220.31845366,0.00026176,2]
[426890573,1782990639000,-319.54920007,0.00026176,2]
[426890570,1782990639000,-249.79238317,0.00026176,2]
[426890569,1782990639000,-553.89912797,0.00026174,2]
[426890571,1782990639000,-212.93692286,0.00026176,2]
[426890568,1782990639000,-533.28729053,0.00026174,2]
[426890580,1782990639000,-1356.00000129,0.00026289,2]
[426890567,1782990639000,-499.13857501,0.00026174,2]
[426890566,1782990639000,-556.96068103,0.00026174,2]
[426890558,1782990639000,-489.12600746,0.00026174,2]
[426890556,1782990639000,-442.55637314,0.00026174,2]
[426890559,1782990639000,-174.97070727,0.00026174,2]
[426890560,1782990639000,-508.46801107,0.00026174,2]
[426890555,1782990639000,-240.49697324,0.00026174,2]
[426890562,1782990639000,-579.69160101,0.00026174,2]
[426890561,1782990639000,-486.76036819,0.00026174,2]
[426890564,1782990639000,-487.47431835,0.00026174,2]
[426890565,1782990639000,-558.48875181,0.00026174,2]
[426890563,1782990639000,-567.5640934,0.00026174,2]
[426890557,1782990639000,-509.11919602,0.00026174,2]
[426890585,1782990640000,-1226.8,0.00026289,2]
[426890607,1782990642000,-39991.14838477,0.00027049,2]
[426890608,1782990642000,-150.0,0.00027088,2]
[426890610,1782990642000,-160.0,0.00027093,2]
[426890615,1782990642000,-631.3967021,0.000271,2]
[426890614,1782990642000,-189.86987819,0.000271,2]
[426890616,1782990642000,-508.0,0.00027137,2]
[426890619,1782990642000,-1932.46,0.000273,2]
[426890623,1782990642000,-500.0,0.00027397,15]
[426890617,1782990642000,-1318.16299495,0.000273,2]
[426890625,1782990642000,-643.26,0.00027397,30]
[426890622,1782990642000,-500.0,0.00027397,15]
[426890624,1782990642000,-1500.0,0.00027397,2]
[426890621,1782990642000,-152.0,0.00027352,4]
[426890620,1782990642000,-631.3967021,0.000273,2]
[426890636,1782990642000,-1129.0,0.00027669,5]
[426890629,1782990642000,-500.0,0.000275,7]
[426890626,1782990642000,-2064.91,0.00027397,10]
[426890627,1782990642000,-1431.08303494,0.0002747,2]
[426890609,1782990642000,-150.0,0.00027088,2]
[426890630,1782990642000,-468.48,0.00027558,2]
[426890618,1782990642000,-185.10296578,0.000273,2]
[426890606,1782990642000,-251.0,0.00027,2]
[426890597,1782990642000,-381.0,0.00027,2]
[426890602,1782990642000,-163.0,0.00027,2]
[426890635,1782990642000,-631.3967021,0.000276,2]
[426890586,1782990642000,-2350.7536774,0.00026289,2]
[426890588,1782990642000,-250.0,0.00026502,2]
[426890587,1782990642000,-167.53,0.00026409,2]
[426890589,1782990642000,-187.0,0.00026521,2]
[426890590,1782990642000,-47200.03661059,0.00026634,2]
[426890593,1782990642000,-388.57200746,0.00026792,2]
[426890598,1782990642000,-437.0,0.00027,2]
[426890594,1782990642000,-151.98186081,0.00026887,2]
[426890592,1782990642000,-210.63947896,0.00026792,2]
[426890595,1782990642000,-6090.88474034,0.00026999,2]
[426890596,1782990642000,-223.0,0.00027,2]
[426890591,1782990642000,-1453.98,0.00026704,2]
[426890600,1782990642000,-190.0,0.00027,2]
[426890599,1782990642000,-202.0,0.00027,2]
[426890601,1782990642000,-263.0,0.00027,2]
[426890603,1782990642000,-173.0,0.00027,2]
[426890611,1782990642000,-1318.16299495,0.000271,2]
[426890612,1782990642000,-185.10296578,0.000271,2]
[426890613,1782990642000,-1932.46,0.000271,2]
[426890605,1782990642000,-166.0,0.00027,2]
[426890604,1782990642000,-470.0,0.00027,2]
[426890631,1782990642000,-197.43503461,0.0002756,2]
[426890648,1782990642000,-381.0,0.00028,2]
[426890628,1782990642000,-47200.03661059,0.00027477,2]
[426890657,1782990642000,-166.0,0.00028,2]
[426890663,1782990642000,-1318.16299495,0.000282,2]
[426890672,1782990642000,-500.0,0.00028549,7]
[426890668,1782990642000,-6593.3017759,0.00028224,2]
[426890674,1782990642000,-500.0,0.00028549,5]
[426890665,1782990642000,-1932.46,0.000282,2]
[426890667,1782990642000,-631.3967021,0.000282,2]
[426890675,1782990642000,-500.0,0.00028549,2]
[426890669,1782990642000,-2795.04117975,0.00028261,2]
[426890656,1782990642000,-470.0,0.00028,2]
[426890671,1782990642000,-927.18298235,0.00028403,14]
[426890676,1782990642000,-1000.0,0.00028549,2]
[426890678,1782990642000,-500.0,0.00028549,7]
[426890677,1782990642000,-1527.29,0.00028549,7]
[426890685,1782990642000,-391.30594907,0.00028597,2]
[426890681,1782990642000,-39991.14838477,0.00028568,2]
[426890679,1782990642000,-500.0,0.00028549,14]
[426890683,1782990642000,-212.12151067,0.00028597,2]
[426890686,1782990642000,-398.293388,0.0002862,7]
[426890632,1782990642000,-364.21343292,0.0002756,2]
[426890673,1782990642000,-500.0,0.00028549,7]
[426890655,1782990642000,-173.0,0.00028,2]
[426890670,1782990642000,-47200.03661059,0.00028319,2]
[426890653,1782990642000,-163.0,0.00028,2]
[426890633,1782990642000,-1318.16299495,0.000276,2]
[426890652,1782990642000,-263.0,0.00028,2]
[426890634,1782990642000,-1932.46,0.000276,2]
[426890637,1782990642000,-594.93179698,0.00027669,5]
[426890639,1782990642000,-39991.14838477,0.00027808,2]
[426890641,1782990642000,-274.0,0.0002786,5]
[426890640,1782990642000,-500.0,0.00027821,15]
[426890642,1782990642000,-1318.16299495,0.000279,2]
[426890645,1782990642000,-6090.88474034,0.00027975,2]
[426890644,1782990642000,-631.3967021,0.000279,2]
[426890638,1782990642000,-167.53,0.00027799,2]
[426890643,1782990642000,-1932.46,0.000279,2]
[426890646,1782990642000,-223.0,0.00028,2]
[426890659,1782990642000,-482.08,0.0002801,7]
[426890658,1782990642000,-251.0,0.00028,2]
[426890660,1782990642000,-157.23588198,0.00028079,2]
[426890661,1782990642000,-157.23588198,0.0002808,2]
[426890662,1782990642000,-157.23588198,0.0002808,2]
[426890649,1782990642000,-437.0,0.00028,2]
[426890647,1782990642000,-14258.13,0.00028,2]
[426890651,1782990642000,-190.0,0.00028,2]
[426890650,1782990642000,-202.0,0.00028,2]
[426890729,1782990643000,-473.68857776,0.0002916,2]
[426890719,1782990643000,-560.0,0.00029,2]
[426890727,1782990643000,-500.0,0.0002916,2]
[426890721,1782990643000,-169.68,0.00029138,7]
[426890720,1782990643000,-153.45,0.00029076,2]
[426890723,1782990643000,-159.67,0.00029141,7]
[426890717,1782990643000,-169.68908111,0.00029,2]
[426890722,1782990643000,-167.7,0.00029138,7]
[426890726,1782990643000,-500.0,0.0002916,2]
[426890739,1782990643000,-160.53,0.00029391,7]
[426890725,1782990643000,-500.0,0.0002916,2]
[426890724,1782990643000,-164.62,0.00029145,30]
[426890732,1782990643000,-1500.0,0.00029213,2]
[426890740,1782990643000,-152.0,0.00029415,3]
[426890731,1782990643000,-167.53,0.00029189,2]
[426890728,1782990643000,-500.0,0.0002916,2]
[426890735,1782990643000,-3909.43942752,0.00029213,2]
[426890733,1782990643000,-1074.92255746,0.00029213,2]
[426890734,1782990643000,-373.41145621,0.00029213,2]
[426890736,1782990643000,-500.0,0.00029233,15]
[426890738,1782990643000,-164.62,0.0002931,7]
[426890737,1782990643000,-153.45,0.00029288,30]
[426890742,1782990643000,-3909.43942752,0.00029487,2]
[426890741,1782990643000,-164.62,0.00029476,2]
[426890745,1782990643000,-263.0,0.00029666,10]
[426890718,1782990643000,-251.96323966,0.00029,2]
[426890730,1782990643000,-47200.03661059,0.00029162,2]
[426890716,1782990643000,-1193.0,0.00029,2]
[426890697,1782990643000,-153.45,0.00028864,7]
[426890714,1782990643000,-181.82402055,0.00029,2]
[426890691,1782990643000,-262.06,0.00028647,2]
[426890688,1782990643000,-167.7,0.00028639,30]
[426890690,1782990643000,-157.12,0.00028645,30]
[426890689,1782990643000,-159.67,0.00028644,30]
[426890687,1782990643000,-169.68,0.00028639,30]
[426890692,1782990643000,-164.62,0.0002865,30]
[426890698,1782990643000,-2446.85055989,0.00028903,14]
[426890693,1782990643000,-153.45,0.00028652,30]
[426890696,1782990643000,-482.08,0.0002884,7]
[426890694,1782990643000,-151.98186081,0.00028808,2]
[426890699,1782990643000,-4316.53442211,0.00028903,14]
[426890695,1782990643000,-164.62,0.00028815,7]
[426890715,1782990643000,-489.49329255,0.00029,2]
[426890703,1782990643000,-508.0,0.0002896,4]
[426890702,1782990643000,-6090.88474034,0.0002895,2]
[426890701,1782990643000,-8736.9183,0.00028903,14]
[426890705,1782990643000,-500.0,0.00029,7]
[426890706,1782990643000,-516.1,0.00029,7]
[426890707,1782990643000,-236.95257769,0.00029,2]
[426890704,1782990643000,-164.62,0.0002898,2]
[426890708,1782990643000,-390.16282088,0.00029,2]
[426890709,1782990643000,-445.28355063,0.00029,2]
[426890710,1782990643000,-207.74102593,0.00029,2]
[426890712,1782990643000,-281.85914569,0.00029,2]
[426890713,1782990643000,-164.80199786,0.00029,2]
[426890751,1782990643000,-1231.0,0.0002971,2]
[426890700,1782990643000,-6457.27734051,0.00028903,14]
[426890750,1782990643000,-482.08,0.00029669,7]
[426890711,1782990643000,-193.85478866,0.00029,2]
[426890749,1782990643000,-160.592603,0.00029666,10]
[426890786,1782990643000,-506.31,0.000301,7]
[426890782,1782990643000,-506.35,0.000301,7]
[426890780,1782990643000,-506.35,0.000301,7]
[426890779,1782990643000,-506.35,0.000301,7]
[426890783,1782990643000,-506.39,0.000301,7]
[426890784,1782990643000,-506.31,0.000301,7]
[426890785,1782990643000,-506.31,0.000301,7]
[426890781,1782990643000,-506.35,0.000301,7]
[426890787,1782990643000,-506.31,0.000301,7]
[426890788,1782990643000,-506.31,0.000301,7]
[426890789,1782990643000,-506.31,0.000301,7]
[426890790,1782990643000,-506.31,0.000301,7]
[426890777,1782990643000,-506.35,0.000301,7]
[426890791,1782990643000,-506.31,0.000301,7]
[426890793,1782990643000,-506.31,0.000301,7]
[426890794,1782990643000,-506.31,0.000301,7]
[426890797,1782990643000,-505.78,0.000301,7]
[426890798,1782990643000,-505.78,0.000301,7]
[426890795,1782990643000,-506.41,0.000301,7]
[426890796,1782990643000,-505.78,0.000301,7]
[426890799,1782990643000,-505.78,0.000301,7]
[426890801,1782990643000,-505.78,0.000301,7]
[426890803,1782990643000,-505.78,0.000301,7]
[426890802,1782990643000,-505.78,0.000301,7]
[426890800,1782990643000,-505.78,0.000301,7]
[426890748,1782990643000,-511.0,0.00029666,10]
[426890792,1782990643000,-506.31,0.000301,7]
[426890778,1782990643000,-506.35,0.000301,7]
[426890804,1782990643000,-505.78,0.000301,7]
[426890773,1782990643000,-506.35,0.000301,7]
[426890747,1782990643000,-362.0,0.00029666,10]
[426890743,1782990643000,-150.0,0.00029534,2]
[426890746,1782990643000,-263.0,0.00029666,10]
[426890744,1782990643000,-197.0,0.00029666,10]
[426890752,1782990643000,-3652.0,0.0002971,2]
[426890753,1782990643000,-6089.0,0.0002971,2]
[426890756,1782990643000,-241.38584039,0.00029921,2]
[426890776,1782990643000,-506.35,0.000301,7]
[426890754,1782990643000,-3909.43942752,0.00029761,2]
[426890764,1782990643000,-3909.43942752,0.00030035,2]
[426890761,1782990643000,-14999.98,0.0003,2]
[426890760,1782990643000,-5057.08040005,0.0003,30]
[426890757,1782990643000,-445.29060286,0.00029921,2]
[426890755,1782990643000,-2545.08730307,0.00029882,2]
[426890758,1782990643000,-6090.88474034,0.00029925,2]
[426890774,1782990643000,-506.35,0.000301,7]
[426890762,1782990643000,-200.0,0.0003,2]
[426890771,1782990643000,-506.19,0.000301,7]
[426890770,1782990643000,-506.19,0.000301,7]
[426890772,1782990643000,-506.35,0.000301,7]
[426890769,1782990643000,-506.19,0.000301,7]
[426890775,1782990643000,-506.35,0.000301,7]
[426890767,1782990643000,-506.19,0.000301,7]
[426890765,1782990643000,-166.91,0.00030039,2]
[426890766,1782990643000,-506.19,0.000301,7]
[426890759,1782990643000,-638.97951336,0.00029994,2]
[426890763,1782990643000,-47200.03661059,0.00030004,2]
[426890768,1782990643000,-506.19,0.000301,7]
[426890852,1782990644000,-1362.0,0.00030332,2]
[426890850,1782990644000,-192.0,0.00030332,2]
[426890849,1782990644000,-249.986,0.00030332,2]
[426890847,1782990644000,-168.091,0.00030332,2]
[426890851,1782990644000,-3566.0,0.00030332,2]
[426890842,1782990644000,-150.0,0.00030332,2]
[426890844,1782990644000,-150.0,0.00030332,2]
[426890845,1782990644000,-150.654,0.00030332,2]
[426890841,1782990644000,-150.0,0.00030332,2]
[426890834,1782990644000,-500.0,0.00030136,60]
[426890846,1782990644000,-181.596,0.00030332,2]
[426890848,1782990644000,-250.0,0.00030332,2]
[426890866,1782990644000,-175.51104745,0.00030411,60]
[426890854,1782990644000,-223.0,0.00030332,2]
[426890855,1782990644000,-152.0,0.00030335,5]
[426890858,1782990644000,-234.0,0.00030351,10]
[426890859,1782990644000,-251.0,0.0003036,2]
[426890857,1782990644000,-362.0,0.00030351,10]
[426890861,1782990644000,-457.90611043,0.00030389,20]
[426890860,1782990644000,-251.0,0.0003036,2]
[426890856,1782990644000,-500.0,0.00030342,15]
[426890862,1782990644000,-419.567456,0.00030399,14]
[426890863,1782990644000,-2757.0,0.000304,2]
[426890864,1782990644000,-229.8194106,0.00030401,2]
[426890840,1782990644000,-3909.43942752,0.00030309,2]
[426890853,1782990644000,-1278.0,0.00030332,2]
[426890830,1782990644000,-506.1,0.000301,7]
[426890817,1782990644000,-506.06,0.000301,7]
[426890837,1782990644000,-175.92,0.00030137,2]
[426890865,1782990644000,-2056.59370627,0.00030411,30]
[426890806,1782990644000,-505.78,0.000301,7]
[426890805,1782990644000,-505.78,0.000301,7]
[426890811,1782990644000,-506.06,0.000301,7]
[426890810,1782990644000,-506.06,0.000301,7]
[426890808,1782990644000,-505.82,0.000301,7]
[426890809,1782990644000,-506.06,0.000301,7]
[426890807,1782990644000,-505.78,0.000301,7]
[426890813,1782990644000,-506.06,0.000301,7]
[426890824,1782990644000,-506.07,0.000301,7]
[426890812,1782990644000,-506.06,0.000301,7]
[426890826,1782990644000,-506.07,0.000301,7]
[426890828,1782990644000,-506.07,0.000301,7]
[426890814,1782990644000,-506.06,0.000301,7]
[426890816,1782990644000,-506.06,0.000301,7]
[426890815,1782990644000,-506.06,0.000301,7]
[426890822,1782990644000,-506.06,0.000301,7]
[426890818,1782990644000,-506.06,0.000301,7]
[426890820,1782990644000,-506.06,0.000301,7]
[426890832,1782990644000,-1364.9569433,0.0003011,2]
[426890839,1782990644000,-1453.98,0.00030193,2]
[426890835,1782990644000,-161.79,0.00030136,7]
[426890833,1782990644000,-249.0,0.00030114,30]
[426890836,1782990644000,-196.55,0.00030136,7]
[426890843,1782990644000,-150.0,0.00030332,2]
[426890838,1782990644000,-150.0,0.00030137,30]
[426890868,1782990644000,-4233.353,0.0003043,26]
[426890870,1782990644000,-253.62401611,0.00030441,30]
[426890869,1782990644000,-170.39,0.0003043,26]
[426890902,1782990644000,-500.0,0.00030607,2]
[426890900,1782990644000,-500.0,0.00030607,5]
[426890906,1782990644000,-1000.0,0.00030607,2]
[426890901,1782990644000,-500.0,0.00030607,2]
[426890904,1782990644000,-1000.0,0.00030607,2]
[426890903,1782990644000,-521.36271652,0.00030607,2]
[426890909,1782990644000,-1527.29,0.00030607,7]
[426890905,1782990644000,-1000.0,0.00030607,2]
[426890908,1782990644000,-1000.0,0.00030607,2]
[426890907,1782990644000,-1000.0,0.00030607,2]
[426890910,1782990644000,-1527.29,0.00030607,7]
[426890911,1782990644000,-1527.29,0.00030607,7]
[426890897,1782990644000,-500.0,0.00030607,5]
[426890913,1782990644000,-1527.29,0.00030607,7]
[426890914,1782990644000,-500.0,0.00030607,15]
[426890915,1782990644000,-500.0,0.00030607,15]
[426890916,1782990644000,-500.0,0.00030607,15]
[426890918,1782990644000,-500.0,0.00030607,15]
[426890917,1782990644000,-500.0,0.00030607,15]
[426890919,1782990644000,-500.0,0.00030607,120]
[426890920,1782990644000,-500.0,0.00030607,120]
[426890921,1782990644000,-500.0,0.00030607,120]
[426890922,1782990644000,-500.0,0.00030607,120]
[426890923,1782990644000,-500.0,0.00030607,120]
[426890867,1782990644000,-2000.0,0.00030423,26]
[426890925,1782990644000,-1133232.6308,0.00030608,2]
[426890912,1782990644000,-1527.29,0.00030607,7]
[426890896,1782990644000,-500.0,0.00030607,5]
[426890924,1782990644000,-500.0,0.00030607,14]
[426890898,1782990644000,-500.0,0.00030607,5]
[426890871,1782990644000,-273.49693755,0.0003046,2]
[426890872,1782990644000,-504.52676099,0.0003046,2]
[426890874,1782990644000,-2056.59370627,0.00030521,30]
[426890873,1782990644000,-482.08,0.00030499,30]
[426890875,1782990644000,-1540.75778306,0.00030558,2]
[426890876,1782990644000,-167.53,0.00030579,2]
[426890878,1782990644000,-437.72419738,0.00030588,60]
[426890894,1782990644000,-500.0,0.00030607,7]
[426890879,1782990644000,-3617.37947861,0.00030602,2]
[426890885,1782990644000,-500.0,0.00030607,7]
[426890880,1782990644000,-183.397069,0.00030602,2]
[426890877,1782990644000,-3909.43942752,0.00030583,2]
[426890881,1782990644000,-500.0,0.00030607,120]
[426890882,1782990644000,-500.0,0.00030607,120]
[426890883,1782990644000,-421.0343488,0.00030607,120]
[426890887,1782990644000,-500.0,0.00030607,7]
[426890895,1782990644000,-500.0,0.00030607,120]
[426890892,1782990644000,-500.0,0.00030607,7]
[426890889,1782990644000,-500.0,0.00030607,7]
[426890893,1782990644000,-500.0,0.00030607,7]
[426890890,1782990644000,-500.0,0.00030607,7]
[426890899,1782990644000,-500.0,0.00030607,5]
[426890888,1782990644000,-500.0,0.00030607,7]
[426890886,1782990644000,-500.0,0.00030607,7]
[426890884,1782990644000,-500.0,0.00030607,120]
[426890891,1782990644000,-500.0,0.00030607,7]
[426890960,1782990645000,-500.0,0.00030932,5]
[426890963,1782990645000,-500.0,0.00030932,5]
[426890965,1782990645000,-500.0,0.00030932,5]
[426890964,1782990645000,-500.0,0.00030932,5]
[426890958,1782990645000,-500.0,0.00030932,5]
[426890955,1782990645000,-150.0,0.00030932,5]
[426890957,1782990645000,-500.0,0.00030932,5]
[426890966,1782990645000,-300.00086986,0.00030932,5]
[426890956,1782990645000,-238.78748961,0.00030932,5]
[426890959,1782990645000,-500.0,0.00030932,5]
[426890962,1782990645000,-500.0,0.00030932,5]
[426890978,1782990645000,-500.0,0.00030946,7]
[426890967,1782990645000,-150.0,0.00030932,5]
[426890976,1782990645000,-666.0,0.00030946,10]
[426890971,1782990645000,-12659.88377736,0.00030936,2]
[426890970,1782990645000,-295.57045977,0.00030932,5]
[426890974,1782990645000,-300.0,0.00030946,10]
[426890973,1782990645000,-638.97951336,0.00030937,2]
[426890972,1782990645000,-638.97951336,0.00030937,2]
[426890969,1782990645000,-158.2084721,0.00030932,5]
[426890975,1782990645000,-666.0,0.00030946,10]
[426890968,1782990645000,-150.0,0.00030932,5]
[426890977,1782990645000,-500.0,0.00030946,7]
[426890949,1782990645000,-6090.88474034,0.000309,2]
[426890961,1782990645000,-344.07126663,0.00030932,5]
[426890950,1782990645000,-2056.59370627,0.00030904,30]
[426890935,1782990645000,-1445.73,0.00030811,120]
[426890947,1782990645000,-164.92,0.000309,4]
[426890980,1782990645000,-500.0,0.00030946,7]